bitfinex-derivatives/quotes_SOLF0:USTF0_20250709
["timestamp","ask_amount","ask_price","bid_price","bid_amount"]
[1752088970041,6.4391,155.27,155.24,6.4398]
[1752088970243,0.04428808,155.28,155.24,6.4398]
[1752088970441,6.4391,155.27,155.24,6.4398]
[1752088970740,6.4391,155.27,155.24,6.48264985]
[1752088971139,0.04428808,155.28,155.24,0.04284985]
[1752088971748,6.4389,155.27,155.24,6.48274985]
[1752088971942,4.21786855,155.28,155.24,0.04284985]
[1752088972542,6.4396,155.25,155.24,0.04284985]
[1752088972743,4.21786855,155.28,155.24,0.04284985]
[1752088974650,6.4389,155.27,155.24,0.04284985]
[1752088975144,4.17358047,155.26,155.24,0.04284985]
[1752088975344,6.4396,155.25,155.24,0.04284985]
[1752088975943,4.17358047,155.26,155.18,6.4424]
[1752088975944,6.4412,155.22,155.18,6.4424]
[1752088976144,6.4412,155.22,155.17,4.5902]
[1752088976346,4.494,155.27,155.17,4.5902]
[1752088976651,6.4401,155.24,155.2,6.4417]
[1752088977150,6.48574231,155.24,155.2,6.4417]
[1752088977354,6.48574231,155.24,155.18,4.17358047]
[1752088977355,6.48574231,155.24,155.21,6.4413]
[1752088978047,6.48574231,155.24,155.2,6.4415]
[1752088978551,6.48574231,155.24,155.18,4.17358047]
[1752088978744,6.48574231,155.24,155.19,4.17358047]
[1752088979246,6.4405,155.23,155.2,6.4413]
[1752088979752,6.4409,155.22,155.19,6.4419]
[1752088980146,6.4406,155.23,155.19,6.4419]
[1752088980344,4.21922278,155.24,155.17,2.3233]
[1752088981146,6.4412,155.22,155.19,6.4419]
[1752088981348,0.04564231,155.24,155.18,4.17358047]
[1752088981550,6.48594231,155.24,155.21,6.4411]
[1752088981948,0.04564231,155.24,155.2,4.17358047]
[1752088982149,0.04564231,155.24,155.23,6.4405]
[1752088982452,6.32368047,155.33,155.22,4.17358047]
[1752088982752,2.2065,155.34,155.29,4.17358047]
[1752088983150,6.4366,155.33,155.3,6.4373]
[1752088983652,6.48181241,155.33,155.3,6.4373]
[1752088983952,6.4368,155.32,155.29,10.61138047]
[1752088984448,6.4368,155.32,155.3,6.4376]
[1752088984648,6.4368,155.32,155.29,4.17358047]
[1752088984951,6.4368,155.32,155.29,10.61128047]
[1752088985253,6.4372,155.31,155.29,10.61128047]
[1752088985550,6.4372,155.31,155.28,6.4383]
[1752088985848,0.04521241,155.33,155.25,4.17358047]
[1752088985849,4.21879288,155.33,155.25,4.17358047]
[1752088986242,6.4382,155.29,155.26,6.439]
[1752088987056,4.21988786,155.31,155.24,4.17358047]
[1752088987249,4.21988786,155.31,155.23,2.1915]
[1752088987447,4.21988786,155.31,155.23,6.36508047]
[1752088987642,4.21988786,155.31,155.23,4.17358047]
[1752088987643,4.17358047,155.29,155.23,4.17358047]
[1752088987850,4.17358047,155.29,155.21,4.17358047]
[1752088988049,4.17358047,155.27,155.21,4.17358047]
[1752088988248,4.17358047,155.27,155.21,6.4411]
[1752088988548,0.04850893,155.26,155.2,106.98807609]
[1752088989554,6.4402,155.24,155.2,106.98807609]
[1752088989754,0.04850893,155.26,155.2,106.98807609]
[1752088990150,6.4399,155.25,155.22,6.4407]
[1752088990553,0.04850893,155.26,155.2,106.98807609]
[1752088990952,0.04850893,155.26,155.21,6.441]
[1752088990953,6.4401,155.24,155.21,6.441]
[1752088991854,4.17358047,155.25,155.19,2.2674]
[1752088992052,0.04850893,155.26,155.2,4.17358047]
[1752088992853,0.04850893,155.26,155.23,6.4402]
[1752088993055,0.04850893,155.26,155.2,4.17358047]
[1752088993358,6.48780893,155.26,155.23,6.4401]
[1752088993561,0.04850893,155.26,155.21,4.17358047]
[1752088993958,0.04850893,155.26,155.24,6.44]
[1752088997362,0.04850893,155.26,155.21,4.17358047]
[1752088997758,0.04850893,155.26,155.24,6.4404]
[1752088998767,0.04850893,155.26,155.23,4.17358047]
[1752089000866,0.04850893,155.26,155.25,6.4402]
[1752089008584,0.04850893,155.26,155.24,6.4405]
[1752089008886,6.48850893,155.26,155.24,6.4405]
[1752089009077,0.04850893,155.26,155.23,6.4409]
[1752089009282,0.04850893,155.26,155.19,6.44098047]
[1752089009585,0.04850893,155.26,155.24,6.4406]
[1752089010284,0.04850893,155.26,155.19,2.2674]
[1752089010486,0.04850893,155.26,155.21,4.17358047]
[1752089010982,0.04850893,155.26,155.25,6.4402]
[1752089015981,0.04850893,155.26,155.24,6.4404]
[1752089017077,6.48850893,155.26,155.24,6.4404]
[1752089017886,0.04850893,155.26,155.25,6.4402]
[1752089018284,6.48840893,155.26,155.24,6.4405]
[1752089018787,0.04850893,155.26,155.21,4.17358047]
[1752089019484,6.48850893,155.26,155.21,4.17358047]
[1752089019789,6.48850893,155.26,155.23,6.4407]
[1752089020088,0.04850893,155.26,155.21,4.17358047]
[1752089020586,6.48840893,155.26,155.21,4.17358047]
[1752089021190,6.48840893,155.26,155.23,6.4407]
[1752089021391,6.48840893,155.26,155.21,4.17358047]
[1752089021988,6.48840893,155.26,155.23,6.4408]
[1752089022593,6.48840893,155.26,155.24,6.4406]
[1752089022793,6.48840893,155.26,155.21,4.17358047]
[1752089023195,6.48840893,155.26,155.23,6.4407]
[1752089023395,0.04850893,155.26,155.23,4.17358047]
[1752089023896,0.04850893,155.26,155.25,6.4402]
[1752089027499,0.04850893,155.26,155.2,11.88877555]
[1752089027701,0.04850893,155.26,155.2,4.17358047]
[1752089027903,0.04850893,155.26,155.19,2.2674]
[1752089028095,6.4405,155.25,155.22,6.4412]
[1752089028804,0.04850893,155.26,155.2,4.17358047]
[1752089029301,0.04850893,155.26,155.2,11.88877555]
[1752089029700,0.04850893,155.26,155.2,4.17358047]
[1752089030394,6.48870893,155.26,155.2,4.17358047]
[1752089030792,0.04850893,155.26,155.2,4.17358047]
[1752089030993,0.04850893,155.26,155.25,6.4402]
[1752089038203,6.39678047,155.32,155.29,6.4383]
[1752089038403,6.39678047,155.32,155.25,4.17358047]
[1752089038605,6.438,155.31,155.28,6.4388]
[1752089038907,6.39678047,155.32,155.25,4.17358047]
[1752089039103,6.39678047,155.32,155.23,16.06235602]
[1752089039303,6.4386,155.29,155.27,6.4391]
[1752089039505,15.43649216,155.32,155.27,6.4391]
[1752089039708,6.4381,155.31,155.28,6.4388]
[1752089040304,6.39678047,155.32,155.23,16.06235602]
[1752089040506,6.39678047,155.32,155.27,6.4392]
[1752089040714,15.43649216,155.32,155.27,6.4392]
[1752089041206,6.39678047,155.32,155.27,6.4392]
[1752089041407,4.17358047,155.3,155.22,11.88877555]
[1752089041605,6.4398,155.26,155.21,16.06235602]
[1752089041813,4.17358047,155.28,155.2,11.88877555]
[1752089042009,4.17358047,155.28,155.19,18.32975602]
[1752089042308,6.4401,155.26,155.19,18.32975602]
[1752089042603,4.17358047,155.28,155.23,6.4408]
[1752089042903,9.03971169,155.3,155.23,6.4408]
[1752089043110,4.17358047,155.28,155.19,18.32975602]
[1752089043301,9.03971169,155.3,155.19,14.15617555]
[1752089043505,9.03971169,155.31,155.29,10.61523416]
[1752089043701,9.03971169,155.32,155.28,4.17673416]
[1752089043897,9.03971169,155.35,155.3,4.17673416]
[1752089044103,9.03971169,155.35,155.34,6.4365]
[1752089044301,9.03971169,155.38,155.32,4.17673416]
[1752089044506,9.03971169,155.4,155.34,4.17673416]
[1752089045203,9.03971169,155.41,155.36,6.4354]
[1752089045410,9.03971169,155.41,155.34,4.17673416]
[1752089045607,11.27121169,155.42,155.33,2.3206]
[1752089045809,4.17243942,155.41,155.34,4.17243942]
[1752089045999,9.03971169,155.43,155.36,4.17243942]
[1752089046204,4.17243942,155.44,155.36,4.17243942]
[1752089046509,4.17243942,155.44,155.38,4.17243942]
[1752089046807,9.03971169,155.46,155.4,4.17243942]
[1752089047204,10.60363942,155.47,155.39,4.17243942]
[1752089047205,9.03971169,155.47,155.39,4.17243942]
[1752089047399,19.64355111,155.47,155.39,4.17243942]
[1752089047610,9.03971169,155.47,155.43,6.4324]
[1752089047908,9.03971169,155.47,155.41,4.17243942]
[1752089048305,9.03971169,155.48,155.43,4.17243942]
[1752089048604,12.00280986,155.52,155.47,4.16412771]
[1752089048802,18.00421479,155.58,155.48,2.2511]
[1752089049005,18.00421479,155.58,155.44,4.16412771]
[1752089049205,18.00421479,155.59,155.44,4.16412771]
[1752089049414,2.1912,155.57,155.48,4.16412771]
[1752089049718,6.4287,155.53,155.48,6.4306]
[1752089049913,2.1912,155.57,155.46,4.16412771]
[1752089050211,25.1245548,155.65,155.36,556.06]
[1752089050414,4.16650265,155.76,155.52,4.16650265]
[1752089050611,8.51670265,155.75,155.53,752.64]
[1752089050808,4.3502,155.75,155.65,6.23527456]
[1752089051003,4.3502,155.75,155.53,752.64]
[1752089051004,4.3502,155.75,155.67,6.23527456]
[1752089051208,4.3502,155.75,155.61,6.23527456]
[1752089051209,4.3502,155.75,155.69,6.23527456]
[1752089051404,375.82,155.8,155.73,6.23527456]
[1752089051916,10.70127456,155.82,155.72,6.23527456]
[1752089052111,6.23527456,155.8,155.7,6.23527456]
[1752089052311,4.466,155.82,155.68,6.23527456]
[1752089052513,4.466,155.82,155.69,6.23527456]
[1752089052712,6.23527456,155.81,155.71,6.23527456]
[1752089052908,6.23527456,155.81,155.53,752.64]
[1752089053117,6.23527456,155.79,155.68,6.23527456]
[1752089053410,7.477e-05,155.83,155.7,6.23527456]
[1752089053917,7.477e-05,155.83,155.61,761.15527456]
[1752089054217,7.477e-05,155.83,155.7,6.23527456]
[1752089054414,6.4179,155.8,155.74,6.23527456]
[1752089054613,7.477e-05,155.83,155.75,62.0]
[1752089054806,7.477e-05,155.83,155.7,6.23527456]
[1752089054807,6.23527456,155.81,155.7,6.23527456]
[1752089055213,6.23527456,155.8,155.69,6.23527456]
[1752089056420,6.4195,155.76,155.69,12.65687456]
[1752089056613,6.4195,155.76,155.69,6.23527456]
[1752089057010,6.23527456,155.78,155.61,761.15527456]
[1752089057219,6.23527456,155.78,155.67,6.23527456]
[1752089057420,6.23527456,155.76,155.65,6.23527456]
[1752089057624,6.4207,155.73,155.65,6.23527456]
[1752089057917,6.23527456,155.76,155.65,6.23527456]
[1752089058116,2.2272,155.75,155.65,6.23527456]
[1752089059524,6.4208,155.72,155.66,6.4232]
[1752089059722,2.2272,155.75,155.65,6.23527456]
[1752089060521,2.2272,155.75,155.66,6.4229]
[1752089061022,6.4212,155.72,155.65,6.23527456]
[1752089061220,2.2272,155.75,155.65,6.23527456]
[1752089061516,8.6471,155.75,155.68,6.4223]
[1752089061720,2.2272,155.75,155.68,6.4223]
[1752089062224,8.6468,155.75,155.69,6.4219]
[1752089062411,2.2272,155.75,155.69,6.23527456]
[1752089062720,2.2674,155.82,155.71,6.23527456]
[1752089062924,6.4187,155.77,155.71,12.65627456]
[1752089063226,2.3315,155.81,155.71,6.23527456]
[1752089063421,6.4187,155.78,155.72,6.4204]
[1752089063617,6.4187,155.78,155.71,6.23527456]
[1752089064120,6.4187,155.78,155.72,6.4207]
[1752089064322,6.4187,155.78,155.62,0.26248]
[1752089064323,2.3315,155.81,155.73,6.23527456]
[1752089064523,2.3315,155.81,155.75,6.23527456]
[1752089064712,2.3315,155.81,155.75,12.65477456]
[1752089065219,6.4179,155.8,155.75,6.23527456]
[1752089065523,2.3315,155.81,155.75,6.23527456]
[1752089065724,8.7487,155.81,155.75,6.23527456]
[1752089065927,2.3315,155.81,155.75,6.23527456]
[1752089066417,2.3315,155.81,155.7,6.23527456]
[1752089066720,2.3315,155.81,155.74,6.23527456]
[1752089067917,2.3315,155.81,155.64,19.3]
[1752089068122,2.3315,155.81,155.74,6.23527456]
[1752089068520,6.4178,155.8,155.73,6.23527456]
[1752089068726,2.3315,155.81,155.73,6.23527456]
[1752089068927,6.4178,155.8,155.75,6.4192]
[1752089069224,6.4178,155.8,155.74,6.23527456]
[1752089069529,2.3315,155.81,155.73,6.23527456]
[1752089069928,2.3315,155.81,155.74,6.4197]
[1752089070424,6.4182,155.79,155.74,6.4197]
[1752089070624,6.4182,155.79,155.75,6.4194]
[1752089070930,2.3315,155.81,155.73,6.23527456]
[1752089071321,2.3315,155.81,155.75,6.4195]
[1752089071727,6.4182,155.79,155.74,6.4198]
[1752089071929,2.3315,155.81,155.73,6.23527456]
[1752089072335,2.3315,155.81,155.66,62.0]
[1752089072631,2.3315,155.81,155.75,6.23527456]
[1752089072834,2.3315,155.81,155.74,6.23527456]
[1752089073126,6.4177,155.8,155.76,6.4189]
[1752089073331,6.4177,155.8,155.74,6.23527456]
[1752089073530,2.3315,155.81,155.74,6.23527456]
[1752089074037,8.7488,155.81,155.76,6.4191]
[1752089074333,8.7488,155.81,155.74,6.23527456]
[1752089075027,6.4177,155.8,155.76,6.4191]
[1752089075230,6.4177,155.8,155.74,6.23527456]
[1752089075732,2.3315,155.81,155.72,6.23527456]
[1752089076230,8.56677456,155.81,155.74,6.4199]
[1752089076733,6.4186,155.78,155.74,6.4199]
[1752089077329,6.418,155.79,155.75,6.4195]
[1752089077930,2.3315,155.81,155.75,6.4195]
[1752089078832,6.4187,155.78,155.72,6.23527456]
[1752089079032,6.23527456,155.79,155.69,6.23527456]
[1752089079225,6.4202,155.74,155.69,6.23527456]
[1752089079433,6.23527456,155.77,155.69,6.23527456]
[1752089079725,2.3315,155.81,155.69,6.23527456]
[1752089079930,8.56677456,155.81,155.71,6.23527456]
[1752089080334,6.419,155.77,155.74,6.4199]
[1752089080533,2.3315,155.81,155.71,6.23527456]
[1752089080930,2.3315,155.81,155.74,6.4197]
[1752089081129,2.3315,155.81,155.71,6.23527456]
[1752089081637,6.4183,155.78,155.74,6.4199]
[1752089081830,2.3315,155.81,155.73,6.23527456]
[1752089082235,8.7488,155.81,155.75,6.23527456]
[1752089082630,8.7488,155.81,155.7,6.23527456]
[1752089082631,2.3315,155.81,155.67,12.8453]
[1752089082930,2.3315,155.81,155.74,6.23527456]
[1752089084640,6.4182,155.79,155.76,6.4189]
[1752089085232,6.4176,155.8,155.73,6.23527456]
[1752089085436,2.3315,155.81,155.73,6.23527456]
[1752089085837,6.4177,155.8,155.73,6.23527456]
[1752089086238,2.3315,155.81,155.73,6.23527456]
[1752089086637,6.4181,155.79,155.76,6.4188]
[1752089087338,8.56677456,155.81,155.7,6.23527456]
[1752089087537,6.23527456,155.79,155.7,6.23527456]
[1752089087844,6.4194,155.76,155.73,6.4201]
[1752089088539,6.4189,155.77,155.7,6.23527456]
[1752089089134,6.4191,155.76,155.74,6.4196]
[1752089089538,6.23527456,155.79,155.74,6.4196]
[1752089089742,6.4192,155.76,155.73,6.4203]
[1752089089942,197.98,155.8,155.7,6.23527456]
[1752089090139,6.23527456,155.79,155.7,6.23527456]
[1752089090344,6.4202,155.74,155.71,6.421]
[1752089090644,6.23413948,155.73,155.62,13.11168]
[1752089090844,2.3315,155.81,155.66,6.23413948]
[1752089091045,204.07413948,155.8,155.7,6.23413948]
[1752089091442,6.4187,155.77,155.74,6.4196]
[1752089091743,6.23413948,155.8,155.74,6.4196]
[1752089092648,6.4187,155.77,155.74,6.4196]
[1752089093242,6.4192,155.76,155.7,6.23413948]
[1752089093444,6.23413948,155.8,155.69,6.23413948]
[1752089093642,6.23413948,155.78,155.69,6.23413948]
[1752089093844,6.4191,155.77,155.69,6.23413948]
[1752089094843,6.4186,155.78,155.69,6.23413948]
[1752089095045,206.46563948,155.81,155.69,6.23413948]
[1752089095445,6.419,155.77,155.69,6.23413948]
[1752089095639,197.74,155.8,155.69,6.23413948]
[1752089095844,197.74,155.8,155.66,62.0]
[1752089095845,6.4194,155.76,155.66,62.0]
[1752089096047,6.23413948,155.79,155.66,62.0]
[1752089096048,6.23413948,155.79,155.68,6.23413948]
[1752089096848,6.4194,155.76,155.68,6.23413948]
[1752089097638,6.4194,155.76,155.72,6.4206]
[1752089098841,6.23413948,155.79,155.71,6.421]
[1752089099053,6.23413948,155.79,155.68,6.23413948]
[1752089099253,6.23205824,155.78,155.68,6.23205824]
[1752089099852,197.74,155.8,155.68,6.23205824]
[1752089100354,6.23205824,155.77,155.68,6.23205824]
[1752089100747,6.23205824,155.77,155.63,554.48]
[1752089100943,6.23205824,155.75,155.63,554.48]
[1752089101142,6.23205824,155.75,155.65,6.23205824]
[1752089101358,6.23205824,155.73,155.63,6.23205824]
[1752089101550,6.23205824,155.71,155.62,0.26248]
[1752089101749,6.23205824,155.71,155.64,6.424]
[1752089101953,6.23205824,155.71,155.62,6.49453824]
[1752089102148,6.4219,155.7,155.66,6.423]
[1752089102347,6.23205824,155.71,155.62,6.49453824]
[1752089102853,6.23205824,155.71,155.64,6.4238]
[1752089103155,6.23205824,155.69,155.62,0.26248]
[1752089104148,199.5679,155.72,155.62,0.26248]
[1752089104346,6.23804653,155.71,155.62,0.26248]
[1752089104643,2.2479,155.72,155.63,6.23804653]
[1752089105151,2.2479,155.72,155.65,6.23804653]
[1752089105754,2.2479,155.72,155.67,6.23804653]
[1752089105946,2.2479,155.72,155.7,6.4216]
[1752089106255,2.2479,155.72,155.67,6.23804653]
[1752089106448,2.2479,155.72,155.7,6.4214]
[1752089106853,8.7321,155.74,155.62,0.26248]
[1752089106854,2.3121,155.74,155.69,6.23804653]
[1752089107148,6.23804653,155.79,155.69,6.23804653]
[1752089107347,6.23804653,155.79,155.63,8.84119292]
[1752089107546,203.89804653,155.79,155.69,6.23804653]
[1752089108155,6.4188,155.77,155.73,6.42]
[1752089108350,197.66,155.79,155.71,6.23804653]
[1752089108552,6.419,155.77,155.73,6.4201]
[1752089108855,10.95134653,155.8,155.71,6.23804653]
[1752089109054,208.59134653,155.8,155.71,6.23804653]
[1752089109258,6.419,155.77,155.74,6.4197]
[1752089109452,202.3533,155.8,155.71,6.23804653]
[1752089109649,6.4184,155.78,155.74,6.4196]
[1752089109850,202.2733,155.8,155.74,6.4196]
[1752089110054,208.51134653,155.8,155.71,6.23804653]
[1752089110259,208.51134653,155.8,155.64,70.84119292]
[1752089110260,202.2733,155.8,155.69,6.23804653]
[1752089110455,208.51134653,155.8,155.64,70.84119292]
[1752089110651,208.51134653,155.8,155.7,6.23804653]
[1752089111153,6.23804653,155.78,155.7,6.23804653]
[1752089111352,6.23804653,155.78,155.72,6.4207]
[1752089111552,202.2733,155.8,155.7,6.23804653]
[1752089111753,4.7133,155.8,155.72,6.23804653]
[1752089111954,202.2533,155.8,155.72,6.23804653]
[1752089112353,6.4186,155.78,155.74,6.4196]
[1752089112559,202.2533,155.8,155.72,6.23804653]
[1752089112853,6.4182,155.79,155.75,6.4193]
[1752089113054,4.7133,155.8,155.74,6.23804653]
[1752089113557,4.7133,155.8,155.77,6.4184]
[1752089113951,4.7133,155.8,155.79,6.4179]
[1752089114153,2.3557,155.8,155.79,6.4179]
[1752089114452,2.3557,155.8,155.76,6.23804653]
[1752089115153,2.3557,155.8,155.79,6.4179]
[1752089115756,2.3557,155.8,155.78,6.4182]
[1752089116155,2.3557,155.8,155.76,6.23804653]
[1752089116655,2.3557,155.8,155.75,6.23804653]
[1752089116860,2.3557,155.8,155.79,6.4179]
[1752089117361,7.477e-05,155.83,155.8,6.4171]
[1752089117860,6.41657477,155.83,155.8,6.4171]
[1752089118456,7.477e-05,155.83,155.78,6.22540976]
[1752089118857,7.477e-05,155.83,155.82,6.4167]
[1752089119857,7.477e-05,155.83,155.81,6.4169]
[1752089120064,7.477e-05,155.83,155.78,6.22540976]
[1752089120360,7.477e-05,155.83,155.81,6.417]
[1752089120558,7.477e-05,155.83,155.71,62.0]
[1752089120559,6.22548453,155.83,155.71,62.0]
[1752089120859,7.477e-05,155.83,155.72,6.22540976]
[1752089121056,7.477e-05,155.83,155.65,11.88877555]
[1752089121057,7.477e-05,155.83,155.76,6.22615594]
[1752089121752,7.477e-05,155.83,155.78,6.418]
[1752089121958,7.477e-05,155.83,155.76,6.22615594]
[1752089122260,7.477e-05,155.83,155.78,6.22615594]
[1752089122561,7.477e-05,155.83,155.71,12.8424]
[1752089122761,7.477e-05,155.83,155.76,6.22615594]
[1752089122965,6.4173,155.81,155.78,6.4183]
[1752089123261,6.4173,155.81,155.76,6.22615594]
[1752089123455,6.4171,155.81,155.77,6.4185]
[1752089123658,7.477e-05,155.83,155.77,6.4185]
[1752089124467,7.477e-05,155.83,155.75,6.22615594]
[1752089125367,3.93156499,155.82,155.75,6.22615594]
[1752089125552,3.93156499,155.81,155.75,6.22615594]
[1752089125758,3.93156499,155.8,155.73,6.22615594]
[1752089125962,6.22623071,155.83,155.73,6.22615594]
[1752089126162,6.4181,155.79,155.75,6.4193]
[1752089126861,6.4181,155.79,155.76,6.4191]
[1752089127260,6.4177,155.8,155.76,6.4191]
[1752089127456,7.477e-05,155.83,155.77,6.4185]
[1752089127667,3.93156652,155.82,155.77,6.22615594]
[1752089127966,3.93156652,155.81,155.79,6.4176]
[1752089128269,3.93112561,155.8,155.77,6.22615594]
[1752089128465,7.477e-05,155.83,155.79,6.4178]
[1752089128665,3.9308718,155.82,155.79,6.4178]
[1752089128871,3.9308718,155.81,155.79,6.4178]
[1752089129071,6.4169,155.82,155.79,6.4178]
[1752089129367,3.93087181,155.81,155.79,6.4178]
[1752089129562,6.4169,155.82,155.79,6.4178]
[1752089129764,3.93077402,155.81,155.79,6.4178]
[1752089129964,6.4169,155.82,155.79,6.4178]
[1752089130167,3.91186649,155.81,155.79,6.4178]
[1752089130368,6.4169,155.82,155.79,6.4178]
[1752089130564,10.32887024,155.81,155.79,6.4178]
[1752089130766,3.91198033,155.8,155.75,6.22615594]
[1752089131069,7.477e-05,155.83,155.75,6.22615594]
[1752089131268,3.91219043,155.82,155.79,6.4179]
[1752089131461,3.91219043,155.81,155.79,6.4179]
[1752089131668,7.477e-05,155.83,155.77,6.22615594]
[1752089131861,3.91177573,155.82,155.79,6.4176]
[1752089132172,3.91177573,155.81,155.79,6.4176]
[1752089132472,6.4168,155.82,155.79,6.4176]
[1752089133070,7.477e-05,155.83,155.75,6.22615594]
[1752089133370,3.92591891,155.82,155.75,6.22615594]
[1752089133573,6.4184,155.78,155.75,12.64555594]
[1752089134072,7.477e-05,155.83,155.75,12.64555594]
[1752089134073,6.418,155.79,155.76,6.4189]
[1752089134571,6.418,155.79,155.75,6.22615594]
[1752089134572,6.4172,155.81,155.75,6.22615594]
[1752089134770,7.477e-05,155.83,155.76,4.15137809]
[1752089134971,3.92534738,155.82,155.76,4.15137809]
[1752089135174,3.92534738,155.81,155.76,4.15137809]
[1752089135362,3.92584045,155.8,155.76,4.15137809]
[1752089135562,6.4173,155.81,155.78,6.4183]
[1752089135774,3.92553459,155.8,155.78,6.4183]
[1752089135968,6.4173,155.81,155.78,6.4183]
[1752089136174,3.92553459,155.8,155.76,4.15137809]
[1752089136363,7.477e-05,155.83,155.76,4.15137809]
[1752089136568,3.92563663,155.82,155.76,4.15137809]
[1752089136775,3.92563663,155.81,155.76,4.15137809]
[1752089136974,3.92563663,155.8,155.76,4.15137809]
[1752089137174,7.477e-05,155.83,155.81,6.4168]
[1752089137472,7.477e-05,155.83,155.8,4.15137809]
[1752089137776,7.477e-05,155.83,155.81,4.15137809]
[1752089138878,7.477e-05,155.83,155.82,6.4167]
[1752089139173,7.477e-05,155.83,155.81,4.15137809]
[1752089139377,6.41637477,155.83,155.74,554.32]
[1752089139578,7.477e-05,155.83,155.79,4.15137809]
[1752089139974,7.477e-05,155.83,155.8,6.4174]
[1752089140278,7.477e-05,155.83,155.79,4.15137809]
[1752089140576,7.477e-05,155.83,155.76,4.15137809]
[1752089140780,4.15137809,155.82,155.74,4.15137809]
[1752089140981,4.15137809,155.8,155.72,4.15137809]
[1752089141177,3.92385145,155.79,155.68,554.28]
[1752089141378,4.15137809,155.8,155.71,4.15137809]
[1752089141379,3.92385145,155.78,155.71,4.15137809]
[1752089141578,4.15137809,155.8,155.71,4.15137809]
[1752089141579,6.4192,155.76,155.73,6.4201]
[1752089142082,6.4189,155.77,155.73,6.4203]
[1752089142281,2.1312,155.79,155.73,6.4203]
[1752089142482,3.9242104,155.78,155.71,4.15137809]
[1752089142677,6.4194,155.76,155.72,6.4205]
[1752089142981,6.4194,155.76,155.7,6.23116357]
[1752089143180,6.4189,155.77,155.7,6.23116357]
[1752089143381,2.1312,155.79,155.72,6.23116357]
[1752089143579,3.92426803,155.78,155.72,6.23116357]
[1752089143784,6.4187,155.77,155.74,6.4197]
[1752089143984,2.1312,155.79,155.7,6.23116357]
[1752089144174,3.92417955,155.78,155.7,6.23116357]
[1752089144379,6.4188,155.77,155.74,6.4199]
[1752089144889,6.4186,155.78,155.7,6.23116357]
[1752089145077,2.305,155.81,155.72,6.23116357]
[1752089145385,2.305,155.81,155.77,6.4183]
[1752089145585,2.305,155.81,155.7,6.23116357]
[1752089145586,2.305,155.81,155.76,6.23116357]
[1752089146589,8.7223,155.81,155.78,6.4181]
[1752089146990,2.305,155.81,155.74,6.23116357]
[1752089147296,2.305,155.81,155.73,6.22804917]
[1752089147297,3.90099567,155.8,155.73,6.22804917]
[1752089147488,3.90099567,155.79,155.73,6.22804917]
[1752089147795,6.4182,155.79,155.75,6.4193]
[1752089147987,2.305,155.81,155.73,6.22804917]
[1752089148293,6.4182,155.79,155.75,6.4193]
[1752089148596,6.4182,155.79,155.73,6.22804917]
[1752089148795,6.4176,155.8,155.73,68.22804917]
[1752089149496,6.4179,155.79,155.73,68.22804917]
[1752089149885,2.305,155.81,155.73,68.22804917]
[1752089150092,3.90453631,155.8,155.73,68.22804917]
[1752089150290,3.90462301,155.79,155.73,68.22804917]
[1752089150491,6.4179,155.79,155.76,6.4188]
[1752089150892,6.4179,155.79,155.76,6.419]
[1752089152203,3.91041219,155.78,155.76,6.419]
[1752089152404,8.53304917,155.81,155.73,62.0]
[1752089152597,3.91070011,155.8,155.7,6.22804917]
[1752089152902,3.91070347,155.79,155.7,6.22804917]
[1752089153100,6.4194,155.76,155.72,6.4206]
[1752089153301,6.4194,155.76,155.7,6.22804917]
[1752089153496,8.53304917,155.81,155.7,6.22804917]
[1752089153696,6.4191,155.77,155.73,6.4201]
[1752089153895,6.4191,155.77,155.68,554.28]
[1752089154102,6.4191,155.77,155.72,6.22804917]
[1752089154300,6.4191,155.77,155.74,6.4198]
[1752089154697,6.4192,155.76,155.73,6.4202]
[1752089155204,6.4201,155.74,155.71,6.421]
[1752089155600,6.22804917,155.79,155.69,6.22804917]
[1752089155601,6.22804917,155.79,155.69,68.22804917]
[1752089155802,6.4198,155.75,155.72,6.4207]
[1752089156308,6.4191,155.77,155.7,6.23089128]
[1752089156512,8.53589128,155.81,155.7,6.23089128]
[1752089157600,8.53589128,155.81,155.69,62.0]
[1752089157798,2.305,155.81,155.69,62.0]
[1752089158000,6.23089128,155.78,155.69,62.0]
[1752089158506,6.23089128,155.78,155.68,554.28]
[1752089158806,6.23089128,155.78,155.68,6.23089128]
[1752089159006,2.151,155.77,155.68,6.23089128]
[1752089160010,2.151,155.77,155.7,6.23089128]
[1752089160408,6.4198,155.75,155.72,6.4207]